[Event "*** Titled Tuesday Blitz"]
[Site "Chess.com"]
[Date "2019.07.02"]
[Round "4"]
[White "lrestevez"]
[Black "OglazaOskar2005"]
[Result "1-0"]
[WhiteElo "2145"]
[BlackElo "2253"]
[TimeControl "180+2"]
[EndTime "13:57:00 PDT"]
[Termination "lrestevez won by checkmate"]

1. e4 {[%clk 0:03:01.9]} 1... c5 {[%clk 0:03:00.7]} 2. Nf3 {[%clk 0:03:02.6]}
2... d6 {[%clk 0:03:01.7]} 3. d4 {[%clk 0:03:03.1]} 3... cxd4 {[%clk 0:03:02.5]}
4. c3 {[%clk 0:03:05]} 4... d3 {[%clk 0:02:58.6]} 5. Bxd3 {[%clk 0:03:05]} 5...
Nc6 {[%clk 0:02:57]} 6. O-O {[%clk 0:03:04.5]} 6... g6 {[%clk 0:02:56.1]} 7. h3
{[%clk 0:03:00.6]} 7... Bg7 {[%clk 0:02:55.5]} 8. Qe2 {[%clk 0:02:49.7]} 8...
Qc7 {[%clk 0:02:43.2]} 9. Nbd2 {[%clk 0:02:40.3]} 9... Nf6 {[%clk 0:02:31.8]}
10. Nc4 {[%clk 0:02:41.7]} 10... O-O {[%clk 0:02:27.3]} 11. Bg5 {[%clk
0:02:42.4]} 11... Nd7 {[%clk 0:02:26.6]} 12. Ne3 {[%clk 0:02:37.1]} 12... Re8
{[%clk 0:02:24.6]} 13. Nd5 {[%clk 0:02:34.6]} 13... Qd8 {[%clk 0:02:21.7]} 14.
Rad1 {[%clk 0:02:35.3]} 14... f6 {[%clk 0:02:16.9]} 15. Bc1 {[%clk 0:02:25.6]}
15... e6 {[%clk 0:02:16.9]} 16. Ne3 {[%clk 0:02:23.3]} 16... Qe7 {[%clk
0:02:16.5]} 17. Bc2 {[%clk 0:02:18.8]} 17... Nb6 {[%clk 0:02:07.4]} 18. Qd3
{[%clk 0:02:11]} 18... Bf8 {[%clk 0:02:04.9]} 19. Nc4 {[%clk 0:02:03.2]} 19...
Nxc4 {[%clk 0:02:04.9]} 20. Qxc4 {[%clk 0:02:03.4]} 20... Bd7 {[%clk 0:02:04.6]}
21. Rfe1 {[%clk 0:02:03.3]} 21... Ne5 {[%clk 0:01:58.5]} 22. Nxe5 {[%clk
0:02:01.2]} 22... dxe5 {[%clk 0:02:00.4]} 23. Qc7 {[%clk 0:01:55.9]} 23... Bc6
{[%clk 0:02:00.7]} 24. Qa5 {[%clk 0:01:46.2]} 24... b6 {[%clk 0:01:55]} 25. Qa6
{[%clk 0:01:46]} 25... Red8 {[%clk 0:01:50.7]} 26. Be3 {[%clk 0:01:40.9]} 26...
Kf7 {[%clk 0:01:35.4]} 27. f3 {[%clk 0:01:36.1]} 27... Qc7 {[%clk 0:01:34]} 28.
Bb3 {[%clk 0:01:31.2]} 28... Bb7 {[%clk 0:01:07.5]} 29. Qe2 {[%clk 0:01:27.7]}
29... Bc5 {[%clk 0:01:05.7]} 30. Kh1 {[%clk 0:01:26.9]} 30... g5 {[%clk
0:00:38]} 31. Qc4 {[%clk 0:01:17.6]} 31... Qc6 {[%clk 0:00:36]} 32. Bxc5 {[%clk
0:01:15.4]} 32... bxc5 {[%clk 0:00:37.9]} 33. Qe2 {[%clk 0:01:03.4]} 33... Ba6
{[%clk 0:00:38.2]} 34. Bc4 {[%clk 0:01:03.6]} 34... Bxc4 {[%clk 0:00:36.5]} 35.
Qxc4 {[%clk 0:01:05]} 35... h5 {[%clk 0:00:37]} 36. Qe2 {[%clk 0:00:59.3]} 36...
c4 {[%clk 0:00:33.4]} 37. Qe3 {[%clk 0:00:58.4]} 37... a5 {[%clk 0:00:30]} 38.
h4 {[%clk 0:00:56.7]} 38... Kg6 {[%clk 0:00:27.5]} 39. hxg5 {[%clk 0:00:50]}
39... fxg5 {[%clk 0:00:29.4]} 40. Kh2 {[%clk 0:00:42.5]} 40... h4 {[%clk
0:00:26.3]} 41. Rh1 {[%clk 0:00:39.2]} 41... Rd6 {[%clk 0:00:23.6]} 42. Qe2
{[%clk 0:00:35]} 42... Rad8 {[%clk 0:00:24]} 43. Rxd6 {[%clk 0:00:36.3]} 43...
Rxd6 {[%clk 0:00:24.6]} 44. Rd1 {[%clk 0:00:36.1]} 44... Rxd1 {[%clk 0:00:23.8]}
45. Qxd1 {[%clk 0:00:36.9]} 45... Qc7 {[%clk 0:00:23.4]} 46. Qd2 {[%clk
0:00:35.1]} 46... Kh5 {[%clk 0:00:21.3]} 47. Qd1 {[%clk 0:00:34.2]} 47... Kg6
{[%clk 0:00:21.8]} 48. Qa4 {[%clk 0:00:31.5]} 48... Kf7 {[%clk 0:00:21.6]} 49.
Qb5 {[%clk 0:00:27.6]} 49... Ke7 {[%clk 0:00:21.7]} 50. Qa6 {[%clk 0:00:26.7]}
50... Kf6 {[%clk 0:00:21.5]} 51. Qa8 {[%clk 0:00:27.1]} 51... Qg7 {[%clk
0:00:11.9]} 52. Qd8+ {[%clk 0:00:26.4]} 52... Kg6 {[%clk 0:00:12]} 53. Qxa5
{[%clk 0:00:24.3]} 53... g4 {[%clk 0:00:13]} 54. Qa6 {[%clk 0:00:19.5]} 54...
Qf6 {[%clk 0:00:13.6]} 55. Qxc4 {[%clk 0:00:19]} 55... Qf4+ {[%clk 0:00:15]} 56.
Kg1 {[%clk 0:00:19.4]} 56... Qe3+ {[%clk 0:00:16.3]} 57. Kf1 {[%clk 0:00:20]}
57... g3 {[%clk 0:00:17.6]} 58. Qxe6+ {[%clk 0:00:20.8]} 58... Kh7 {[%clk
0:00:17.5]} 59. Qf5+ {[%clk 0:00:21.5]} 59... Kg7 {[%clk 0:00:18.5]} 60. Qxe5+
{[%clk 0:00:22.5]} 60... Kh7 {[%clk 0:00:18.7]} 61. Qf5+ {[%clk 0:00:23.9]}
61... Kh6 {[%clk 0:00:19.4]} 62. Qf6+ {[%clk 0:00:24.4]} 62... Kh7 {[%clk
0:00:20.7]} 63. Qxh4+ {[%clk 0:00:24.1]} 63... Kg7 {[%clk 0:00:17.8]} 64. Qxg3+
{[%clk 0:00:25.2]} 64... Kf7 {[%clk 0:00:18.6]} 65. Qc7+ {[%clk 0:00:23.7]}
65... Kg6 {[%clk 0:00:18.8]} 66. Qc6+ {[%clk 0:00:24.4]} 66... Kg5 {[%clk
0:00:18.7]} 67. Qd5+ {[%clk 0:00:24.8]} 67... Kh4 {[%clk 0:00:19.5]} 68. Qd1
{[%clk 0:00:22.4]} 68... Kg5 {[%clk 0:00:15.1]} 69. Qe1 {[%clk 0:00:21.6]} 69...
Qd3+ {[%clk 0:00:16.4]} 70. Kg1 {[%clk 0:00:22.9]} 70... Kf4 {[%clk 0:00:17.1]}
71. e5 {[%clk 0:00:23.5]} 71... Qd5 {[%clk 0:00:17.4]} 72. e6 {[%clk 0:00:24.2]}
72... Qc5+ {[%clk 0:00:18.7]} 73. Kh1 {[%clk 0:00:23.6]} 73... Qh5+ {[%clk
0:00:19.5]} 74. Kg1 {[%clk 0:00:25]} 74... Qc5+ {[%clk 0:00:21.4]} 75. Kf1
{[%clk 0:00:25.8]} 75... Qb5+ {[%clk 0:00:21.5]} 76. Qe2 {[%clk 0:00:26.6]}
76... Qh5 {[%clk 0:00:22.9]} 77. Qe4+ {[%clk 0:00:25.8]} 77... Kg3 {[%clk
0:00:22.7]} 78. Qg4+ {[%clk 0:00:26.5]} 78... Qxg4 {[%clk 0:00:23.8]} 79. fxg4
{[%clk 0:00:27.7]} 79... Kh2 {[%clk 0:00:25.7]} 80. e7 {[%clk 0:00:27.6]} 80...
Kg3 {[%clk 0:00:27.6]} 81. g5 {[%clk 0:00:27.9]} 81... Kh2 {[%clk 0:00:29.5]}
82. g6 {[%clk 0:00:29.3]} 82... Kg3 {[%clk 0:00:30.5]} 83. g7 {[%clk 0:00:30.4]}
83... Kf4 {[%clk 0:00:32.4]} 84. e8=Q {[%clk 0:00:30.6]} 84... Kf5 {[%clk
0:00:33.1]} 85. Qf7+ {[%clk 0:00:31.8]} 85... Ke4 {[%clk 0:00:33.9]} 86. g8=Q
{[%clk 0:00:31.8]} 86... Kd3 {[%clk 0:00:35.8]} 87. Qc4+ {[%clk 0:00:31.3]}
87... Kc2 {[%clk 0:00:37.7]} 88. Qg6+ {[%clk 0:00:29]} 88... Kc1 {[%clk
0:00:38.4]} 89. Qg5+ {[%clk 0:00:30]} 89... Kb1 {[%clk 0:00:38.9]} 90. Qf5+
{[%clk 0:00:30.9]} 90... Ka1 {[%clk 0:00:39.4]} 91. Qf2 {[%clk 0:00:26.2]} 91...
Kb1 {[%clk 0:00:39.9]} 92. Qe1+ {[%clk 0:00:27.5]} 92... Kc2 {[%clk 0:00:34.9]}
93. Qb3+ {[%clk 0:00:28.1]} 93... Kd3 {[%clk 0:00:35.5]} 94. Qd5+ {[%clk
0:00:25.9]} 94... Kc2 {[%clk 0:00:36.3]} 95. Qed1+ {[%clk 0:00:24.4]} 95... Kxb2
{[%clk 0:00:36.7]} 96. Q5b3# {[%clk 0:00:20.9]} 1-0

[Event "*** Titled Tuesday Blitz"]
[Site "Chess.com"]
[Date "2019.07.02"]
[Round "5"]
[White "oskariot"]
[Black "ruzomberok"]
[Result "0-1"]
[WhiteElo "2575"]
[BlackElo "2424"]
[TimeControl "180+2"]
[EndTime "14:00:22 PDT"]
[Termination "ruzomberok won by resignation"]

1. e3 {[%clk 0:02:59.8]} 1... e5 {[%clk 0:02:59.8]} 2. Ne2 {[%clk 0:03:00.9]}
2... d5 {[%clk 0:02:59.5]} 3. d4 {[%clk 0:03:01.8]} 3... exd4 {[%clk 0:03:00.5]}
4. Nxd4 {[%clk 0:03:03.7]} 4... c5 {[%clk 0:02:57.6]} 5. Nb3 {[%clk 0:03:03.1]}
5... Nc6 {[%clk 0:02:58]} 6. Bb5 {[%clk 0:02:45.7]} 6... Nf6 {[%clk 0:02:49.2]}
7. Nc3 {[%clk 0:02:43.9]} 7... Be7 {[%clk 0:02:45.7]} 8. O-O {[%clk 0:02:44.6]}
8... O-O {[%clk 0:02:45.3]} 9. e4 {[%clk 0:02:44]} 9... d4 {[%clk 0:02:44.5]}
10. Bxc6 {[%clk 0:02:37.8]} 10... bxc6 {[%clk 0:02:44.3]} 0-1

[Event "*** Titled Tuesday Blitz"]
[Site "Chess.com"]
[Date "2019.07.02"]
[Round "5"]
[White "vlad_Sid"]
[Black "VishnuPrasanna"]
[Result "1-0"]
[WhiteElo "2557"]
[BlackElo "2799"]
[TimeControl "180+2"]
[EndTime "14:02:00 PDT"]
[Termination "vlad_Sid won by resignation"]

1. c4 {[%clk 0:03:01.9]} 1... g6 {[%clk 0:03:00.7]} 2. g3 {[%clk 0:03:02.9]}
2... Bg7 {[%clk 0:03:00.4]} 3. Bg2 {[%clk 0:03:04.4]} 3... d6 {[%clk 0:03:01.3]}
4. Nc3 {[%clk 0:03:05.9]} 4... e5 {[%clk 0:03:02.9]} 5. d3 {[%clk 0:03:07.3]}
5... f5 {[%clk 0:03:04.5]} 6. Nf3 {[%clk 0:03:08.6]} 6... Nf6 {[%clk 0:03:06]}
7. O-O {[%clk 0:03:10.1]} 7... O-O {[%clk 0:03:07.6]} 8. Rb1 {[%clk 0:03:10.1]}
8... c6 {[%clk 0:03:07.9]} 9. b4 {[%clk 0:03:10.5]} 9... a6 {[%clk 0:03:09.5]}
10. a4 {[%clk 0:03:10.8]} 10... a5 {[%clk 0:03:11]} 11. b5 {[%clk 0:03:12]}
11... Nbd7 {[%clk 0:03:12.4]} 12. Qc2 {[%clk 0:03:11.3]} 12... Nc5 {[%clk
0:03:12.6]} 13. Be3 {[%clk 0:03:03.8]} 13... Qc7 {[%clk 0:03:12]} 14. Nxe5
{[%clk 0:02:47.6]} 14... f4 {[%clk 0:02:50]} 15. gxf4 {[%clk 0:02:17.2]} 15...
dxe5 {[%clk 0:02:48.9]} 16. Bxc5 {[%clk 0:02:18]} 16... Re8 {[%clk 0:02:50]} 17.
bxc6 {[%clk 0:02:13]} 17... bxc6 {[%clk 0:02:49.6]} 18. Bb6 {[%clk 0:02:01.7]}
18... Qe7 {[%clk 0:02:45.8]} 19. fxe5 {[%clk 0:02:01]} 19... Ng4 {[%clk
0:02:46]} 20. f4 {[%clk 0:01:57.1]} 20... Nxe5 {[%clk 0:02:47.4]} 21. fxe5
{[%clk 0:01:53.8]} 1-0

[Event "*** Titled Tuesday Blitz"]
[Site "Chess.com"]
[Date "2019.07.02"]
[Round "5"]
[White "Muisback26"]
[Black "ozates"]
[Result "1-0"]
[WhiteElo "2946"]
[BlackElo "2317"]
[TimeControl "180+2"]
[EndTime "14:02:18 PDT"]
[Termination "Muisback26 won by resignation"]

1. e4 {[%clk 0:03:01.8]} 1... c5 {[%clk 0:02:58]} 2. Nf3 {[%clk 0:03:02.1]} 2...
Nc6 {[%clk 0:02:58.1]} 3. d4 {[%clk 0:03:01.4]} 3... cxd4 {[%clk 0:02:58.7]} 4.
Nxd4 {[%clk 0:03:02.8]} 4... e5 {[%clk 0:03:00.3]} 5. Nb5 {[%clk 0:03:03.9]}
5... d6 {[%clk 0:03:01]} 6. N1c3 {[%clk 0:03:05.3]} 6... a6 {[%clk 0:03:01.9]}
7. Na3 {[%clk 0:03:06.3]} 7... Be7 {[%clk 0:03:02.6]} 8. Nc4 {[%clk 0:03:07.3]}
8... b5 {[%clk 0:03:03.6]} 9. Ne3 {[%clk 0:03:08.7]} 9... Nf6 {[%clk 0:03:05.1]}
10. g3 {[%clk 0:03:10.1]} 10... O-O {[%clk 0:03:05.6]} 11. Bg2 {[%clk
0:03:11.5]} 11... Nd4 {[%clk 0:03:04.4]} 12. O-O {[%clk 0:03:12.4]} 12... Bb7
{[%clk 0:03:03.7]} 13. a4 {[%clk 0:03:10.4]} 13... b4 {[%clk 0:03:03.8]} 14.
Ncd5 {[%clk 0:03:11.6]} 14... Nxd5 {[%clk 0:03:04.8]} 15. exd5 {[%clk
0:03:13.1]} 15... Rc8 {[%clk 0:02:57.3]} 16. Bd2 {[%clk 0:03:14]} 16... Bg5
{[%clk 0:02:40]} 17. c3 {[%clk 0:03:10.2]} 17... bxc3 {[%clk 0:02:36]} 18. bxc3
{[%clk 0:03:10.9]} 18... Bxe3 {[%clk 0:02:35.8]} 19. fxe3 {[%clk 0:03:09.9]}
19... a5 {[%clk 0:02:05.4]} 20. cxd4 {[%clk 0:03:07.6]} 20... exd4 {[%clk
0:02:05.5]} 21. exd4 {[%clk 0:03:06.1]} 21... Qb6 {[%clk 0:02:04.3]} 22. Bf4
{[%clk 0:02:56.1]} 22... Rc4 {[%clk 0:02:02.5]} 23. Rb1 {[%clk 0:02:56.6]} 23...
Qa7 {[%clk 0:01:52.5]} 24. Bxd6 {[%clk 0:02:53]} 24... Rxd4 {[%clk 0:01:53.3]}
25. Rxb7 {[%clk 0:02:52.7]} 25... Rxd1+ {[%clk 0:01:49.2]} 26. Rxa7 {[%clk
0:02:53.7]} 1-0

[Event "*** Titled Tuesday Blitz"]
[Site "Chess.com"]
[Date "2019.07.02"]
[Round "5"]
[White "Daniel-2003"]
[Black "Thee-Chessboy"]
[Result "1-0"]
[WhiteElo "2291"]
[BlackElo "2423"]
[TimeControl "180+2"]
[EndTime "14:02:30 PDT"]
[Termination "Daniel-2003 won by resignation"]

1. e4 {[%clk 0:03:01.9]} 1... c5 {[%clk 0:03:00.7]} 2. Nf3 {[%clk 0:03:02.1]}
2... d6 {[%clk 0:03:01.9]} 3. d4 {[%clk 0:03:03.7]} 3... cxd4 {[%clk 0:03:03.8]}
4. Nxd4 {[%clk 0:03:05.3]} 4... Nf6 {[%clk 0:03:05.2]} 5. Nc3 {[%clk 0:03:07]}
5... a6 {[%clk 0:03:06.2]} 6. h3 {[%clk 0:03:04.5]} 6... e6 {[%clk 0:03:07.1]}
7. g4 {[%clk 0:03:03]} 7... h6 {[%clk 0:03:07.7]} 8. Bg2 {[%clk 0:02:41.6]} 8...
g5 {[%clk 0:03:06.3]} 9. Be3 {[%clk 0:02:35.8]} 9... Nbd7 {[%clk 0:03:05.5]} 10.
Qe2 {[%clk 0:02:32.2]} 10... Ne5 {[%clk 0:03:01.9]} 11. O-O-O {[%clk 0:02:23.1]}
11... Qc7 {[%clk 0:03:02.2]} 12. f4 {[%clk 0:02:17.6]} 12... gxf4 {[%clk
0:03:02.3]} 13. Bxf4 {[%clk 0:02:18]} 13... Bd7 {[%clk 0:03:02.7]} 14. Rhf1
{[%clk 0:02:10.9]} 14... Be7 {[%clk 0:03:03.1]} 15. Nf3 {[%clk 0:01:51.7]} 15...
Ng6 {[%clk 0:02:56.9]} 16. Bg3 {[%clk 0:01:42.9]} 16... Rc8 {[%clk 0:02:46.8]}
17. e5 {[%clk 0:01:38.9]} 17... dxe5 {[%clk 0:02:44.9]} 18. Nxe5 {[%clk
0:01:33.6]} 18... Nxe5 {[%clk 0:02:38.4]} 19. Bxe5 {[%clk 0:01:33.1]} 1-0

[Event "*** Titled Tuesday Blitz"]
[Site "Chess.com"]
[Date "2019.07.02"]
[Round "5"]
[White "Manukyan_Artak"]
[Black "ENEASZ"]
[Result "0-1"]
[WhiteElo "2323"]
[BlackElo "2502"]
[TimeControl "180+2"]
[EndTime "14:02:50 PDT"]
[Termination "ENEASZ won by resignation"]

1. e4 {[%clk 0:03:01.9]} 1... e5 {[%clk 0:02:52.3]} 2. Nf3 {[%clk 0:02:53.5]}
2... Nc6 {[%clk 0:02:52.7]} 3. d4 {[%clk 0:02:53.9]} 3... exd4 {[%clk
0:02:52.2]} 4. Nxd4 {[%clk 0:02:55.8]} 4... Qh4 {[%clk 0:02:53.3]} 5. Nb5 {[%clk
0:02:56.7]} 5... Bc5 {[%clk 0:02:53.4]} 6. Qe2 {[%clk 0:02:43]} 6... Nf6 {[%clk
0:02:54.1]} 7. g3 {[%clk 0:02:29.2]} 7... Qxe4 {[%clk 0:02:42.6]} 8. Nxc7+
{[%clk 0:02:26.9]} 8... Kd8 {[%clk 0:02:42.4]} 9. Qxe4 {[%clk 0:02:28.1]} 9...
Nxe4 {[%clk 0:02:43.2]} 10. Nxa8 {[%clk 0:02:28.8]} 10... Nxf2 {[%clk
0:02:42.6]} 11. Bg2 {[%clk 0:02:08.8]} 11... Re8+ {[%clk 0:02:39.4]} 12. Kf1
{[%clk 0:01:59.5]} 12... b6 {[%clk 0:02:35.1]} 13. Nd2 {[%clk 0:01:47.9]} 13...
Nxh1 {[%clk 0:02:31.4]} 14. Bxh1 {[%clk 0:01:47.9]} 14... Bb7 {[%clk 0:02:33.1]}
15. Nxb6 {[%clk 0:01:45.8]} 15... Bxb6 {[%clk 0:02:16.8]} 16. Nc4 {[%clk
0:01:42.3]} 16... Ba6 {[%clk 0:02:16.2]} 17. b3 {[%clk 0:01:42.6]} 17... Ne5
{[%clk 0:02:12.9]} 18. Bd5 {[%clk 0:01:42.7]} 18... Nxc4 {[%clk 0:02:12.2]} 19.
bxc4 {[%clk 0:01:43.8]} 19... Re5 {[%clk 0:02:07.4]} 20. Bf4 {[%clk 0:01:39]}
20... Rxd5 {[%clk 0:02:08]} 0-1

[Event "*** Titled Tuesday Blitz"]
[Site "Chess.com"]
[Date "2019.07.02"]
[Round "5"]
[White "Gabix_94"]
[Black "ChainsOfFantasia"]
[Result "1-0"]
[WhiteElo "2685"]
[BlackElo "2471"]
[TimeControl "180+2"]
[EndTime "14:03:32 PDT"]
[Termination "Gabix_94 won by resignation"]

1. c4 {[%clk 0:03:01.9]} 1... e6 {[%clk 0:03:00.4]} 2. Nc3 {[%clk 0:03:02.4]}
2... d5 {[%clk 0:03:01.6]} 3. d4 {[%clk 0:03:03.1]} 3... Nf6 {[%clk 0:03:02.6]}
4. Nf3 {[%clk 0:02:58.3]} 4... dxc4 {[%clk 0:03:03]} 5. e3 {[%clk 0:02:52.9]}
5... c5 {[%clk 0:03:03.3]} 6. Bxc4 {[%clk 0:02:50.9]} 6... a6 {[%clk 0:03:04.7]}
7. O-O {[%clk 0:02:47.9]} 7... b5 {[%clk 0:03:05.2]} 8. Bb3 {[%clk 0:02:49.3]}
8... Bb7 {[%clk 0:03:06.5]} 9. Qe2 {[%clk 0:02:48.9]} 9... Be7 {[%clk 0:03:00]}
10. Rd1 {[%clk 0:02:48.6]} 10... cxd4 {[%clk 0:02:50.9]} 11. Nxd4 {[%clk
0:02:48.5]} 11... Qb6 {[%clk 0:02:47.5]} 12. a4 {[%clk 0:02:47.2]} 12... O-O
{[%clk 0:02:47.2]} 13. axb5 {[%clk 0:02:46.9]} 13... axb5 {[%clk 0:02:43.9]} 14.
Rxa8 {[%clk 0:02:48.8]} 14... Bxa8 {[%clk 0:02:43.8]} 15. Qxb5 {[%clk
0:02:50.1]} 15... Qa7 {[%clk 0:02:34.9]} 16. Bd2 {[%clk 0:02:47.4]} 16... Nbd7
{[%clk 0:02:29.8]} 17. Nc6 {[%clk 0:02:44.8]} 17... Bxc6 {[%clk 0:02:22.7]} 18.
Qxc6 {[%clk 0:02:46.7]} 18... Rb8 {[%clk 0:02:22.2]} 19. Nb5 {[%clk 0:02:43.1]}
19... Qb7 {[%clk 0:02:12.9]} 20. Qxb7 {[%clk 0:02:44.1]} 20... Rxb7 {[%clk
0:02:14.8]} 21. Bc4 {[%clk 0:02:43.4]} 21... Ne5 {[%clk 0:02:08]} 22. Be2 {[%clk
0:02:41.4]} 22... Ne4 {[%clk 0:02:02.6]} 23. Be1 {[%clk 0:02:40.4]} 23... f5
{[%clk 0:02:00.6]} 24. f3 {[%clk 0:02:40.4]} 24... Nc5 {[%clk 0:01:56.4]} 25.
Bc3 {[%clk 0:02:41.1]} 25... Ned3 {[%clk 0:01:50.8]} 26. Rxd3 {[%clk 0:02:39.2]}
26... Rxb5 {[%clk 0:01:46.6]} 27. Rd7 {[%clk 0:02:36]} 27... Rxb2 {[%clk
0:01:42.6]} 28. Rxe7 {[%clk 0:02:35.8]} 28... Rxe2 {[%clk 0:01:42.6]} 29. Rxg7+
{[%clk 0:02:35.4]} 29... Kf8 {[%clk 0:01:43.7]} 30. Rxh7 {[%clk 0:02:34.5]}
30... Rxe3 {[%clk 0:01:32]} 31. Bb4 {[%clk 0:02:35.3]} 31... Kg8 {[%clk
0:01:14.2]} 32. Bxc5 {[%clk 0:02:33]} 1-0

[Event "*** Titled Tuesday Blitz"]
[Site "Chess.com"]
[Date "2019.07.02"]
[Round "5"]
[White "AryanTari"]
[Black "Naruto-K"]
[Result "1-0"]
[WhiteElo "2817"]
[BlackElo "2529"]
[TimeControl "180+2"]
[EndTime "14:03:43 PDT"]
[Termination "AryanTari won by resignation"]

1. c4 {[%clk 0:03:01.9]} 1... Nf6 {[%clk 0:02:58.4]} 2. Nc3 {[%clk 0:03:02.7]}
2... c5 {[%clk 0:02:52.6]} 3. Nf3 {[%clk 0:03:02.6]} 3... b6 {[%clk 0:02:53.2]}
4. e4 {[%clk 0:03:01.6]} 4... d6 {[%clk 0:02:54]} 5. d4 {[%clk 0:03:01.9]} 5...
cxd4 {[%clk 0:02:55.2]} 6. Nxd4 {[%clk 0:03:03.2]} 6... g6 {[%clk 0:02:53.7]} 7.
Be3 {[%clk 0:03:03.5]} 7... Bg7 {[%clk 0:02:54.8]} 8. Be2 {[%clk 0:03:04.5]}
8... Bb7 {[%clk 0:02:54]} 9. f3 {[%clk 0:03:05.2]} 9... Nbd7 {[%clk 0:02:54.7]}
10. Qd2 {[%clk 0:03:03.5]} 10... h5 {[%clk 0:02:53.8]} 11. O-O {[%clk
0:03:01.4]} 11... h4 {[%clk 0:02:54]} 12. b4 {[%clk 0:02:58.2]} 12... Rc8 {[%clk
0:02:53.4]} 13. Rac1 {[%clk 0:02:58.9]} 13... a6 {[%clk 0:02:24.8]} 14. Rfd1
{[%clk 0:02:45.9]} 14... Kf8 {[%clk 0:02:23.7]} 15. Nb3 {[%clk 0:02:42]} 15...
Kg8 {[%clk 0:02:19.1]} 16. Nd5 {[%clk 0:02:42.5]} 16... Rh5 {[%clk 0:02:02.7]}
17. Nf4 {[%clk 0:02:38.5]} 17... Rh8 {[%clk 0:02:00.3]} 18. c5 {[%clk
0:02:39.4]} 18... bxc5 {[%clk 0:01:50.7]} 19. bxc5 {[%clk 0:02:39.1]} 19... e5
{[%clk 0:01:48.7]} 20. Nh3 {[%clk 0:02:00.3]} 20... d5 {[%clk 0:01:43.3]} 21.
Na5 {[%clk 0:02:01.5]} 21... Ba8 {[%clk 0:01:22.9]} 22. c6 {[%clk 0:02:02.5]}
22... d4 {[%clk 0:01:22]} 23. cxd7 {[%clk 0:01:56]} 23... Rxc1 {[%clk
0:01:22.1]} 24. Rxc1 {[%clk 0:01:56.2]} 24... dxe3 {[%clk 0:01:21.5]} 25. Rc8
{[%clk 0:01:56.9]} 1-0

[Event "*** Titled Tuesday Blitz"]
[Site "Chess.com"]
[Date "2019.07.02"]
[Round "5"]
[White "VFernandezB"]
[Black "vlad10898"]
[Result "0-1"]
[WhiteElo "2338"]
[BlackElo "2478"]
[TimeControl "180+2"]
[EndTime "14:03:46 PDT"]
[Termination "vlad10898 won by resignation"]

1. e4 {[%clk 0:03:01.9]} 1... c5 {[%clk 0:03:00.4]} 2. Nf3 {[%clk 0:03:02.8]}
2... d6 {[%clk 0:03:01.5]} 3. Bb5+ {[%clk 0:03:04]} 3... Nd7 {[%clk 0:03:02.2]}
4. O-O {[%clk 0:03:04.4]} 4... a6 {[%clk 0:03:02.8]} 5. Bxd7+ {[%clk 0:03:05.7]}
5... Bxd7 {[%clk 0:03:04.7]} 6. d4 {[%clk 0:03:07.3]} 6... cxd4 {[%clk
0:03:06.4]} 7. Qxd4 {[%clk 0:03:08.8]} 7... e5 {[%clk 0:03:08.1]} 8. Qd3 {[%clk
0:03:09.8]} 8... h6 {[%clk 0:03:09.6]} 9. Nc3 {[%clk 0:03:06.5]} 9... Nf6 {[%clk
0:03:08.2]} 10. h3 {[%clk 0:03:05.8]} 10... Be7 {[%clk 0:03:07.7]} 11. Be3
{[%clk 0:03:06.8]} 11... O-O {[%clk 0:03:02.3]} 12. Nd2 {[%clk 0:03:06.7]} 12...
Be6 {[%clk 0:03:00.5]} 13. Nc4 {[%clk 0:03:05.6]} 13... Rc8 {[%clk 0:02:54.5]}
14. Nb6 {[%clk 0:03:01.6]} 14... Rc6 {[%clk 0:02:55.5]} 15. Nbd5 {[%clk
0:03:02.5]} 15... Bxd5 {[%clk 0:02:56.9]} 16. exd5 {[%clk 0:03:02.8]} 16... Rc8
{[%clk 0:02:56.3]} 17. a4 {[%clk 0:03:03.3]} 17... Nd7 {[%clk 0:02:55]} 18. a5
{[%clk 0:03:04.1]} 18... f5 {[%clk 0:02:56]} 19. f3 {[%clk 0:03:03.3]} 19... Bg5
{[%clk 0:02:54.7]} 20. Bf2 {[%clk 0:03:04.2]} 20... Qf6 {[%clk 0:02:31.9]} 21.
Ra4 {[%clk 0:03:00.4]} 21... Nc5 {[%clk 0:02:30.9]} 22. Bxc5 {[%clk 0:03:00.3]}
22... Rxc5 {[%clk 0:02:32.5]} 23. Rb4 {[%clk 0:02:57.4]} 23... Qf7 {[%clk
0:02:25.7]} 24. Rb6 {[%clk 0:02:56.7]} 24... Qd7 {[%clk 0:02:16.4]} 25. b4
{[%clk 0:02:56.8]} 25... Rcc8 {[%clk 0:02:15.5]} 26. b5 {[%clk 0:02:49]} 26...
Bd8 {[%clk 0:02:16.3]} 27. Na4 {[%clk 0:02:35.8]} 27... Qe7 {[%clk 0:01:50.3]}
28. bxa6 {[%clk 0:02:34]} 28... Bxb6+ {[%clk 0:01:51.5]} 29. Nxb6 {[%clk
0:02:34.6]} 29... Rc5 {[%clk 0:01:53]} 30. a7 {[%clk 0:02:26.3]} 30... Rxa5
{[%clk 0:01:53.8]} 31. a8=Q {[%clk 0:02:26]} 31... Rfxa8 {[%clk 0:01:54.7]} 32.
Nxa8 {[%clk 0:02:27.6]} 32... Rxa8 {[%clk 0:01:56.4]} 33. Qb5 {[%clk 0:02:28.8]}
33... Qc7 {[%clk 0:01:53.2]} 34. Rb1 {[%clk 0:02:28.2]} 34... Qxc2 {[%clk
0:01:52.8]} 35. Qxb7 {[%clk 0:02:27]} 35... Ra2 {[%clk 0:01:53.7]} 36. Qc8+
{[%clk 0:02:14.2]} 36... Qxc8 {[%clk 0:01:52.7]} 0-1

[Event "*** Titled Tuesday Blitz"]
[Site "Chess.com"]
[Date "2019.07.02"]
[Round "5"]
[White "tteshan"]
[Black "MasterKroket"]
[Result "0-1"]
[WhiteElo "2221"]
[BlackElo "2376"]
[TimeControl "180+2"]
[EndTime "14:03:51 PDT"]
[Termination "MasterKroket won by resignation"]

1. e4 {[%clk 0:03:01.9]} 1... c5 {[%clk 0:03:00.6]} 2. c3 {[%clk 0:03:02]} 2...
Nf6 {[%clk 0:03:01.2]} 3. e5 {[%clk 0:03:02.7]} 3... Nd5 {[%clk 0:03:02.7]} 4.
d4 {[%clk 0:03:03.4]} 4... cxd4 {[%clk 0:03:03.7]} 5. cxd4 {[%clk 0:03:04.9]}
5... d6 {[%clk 0:03:04.7]} 6. Nf3 {[%clk 0:03:04.4]} 6... Nc6 {[%clk 0:03:05.5]}
7. a3 {[%clk 0:02:58.8]} 7... Bg4 {[%clk 0:02:52.9]} 8. Be2 {[%clk 0:02:52.8]}
8... dxe5 {[%clk 0:02:49]} 9. dxe5 {[%clk 0:02:50.7]} 9... Nb6 {[%clk
0:02:31.5]} 10. O-O {[%clk 0:02:46.1]} 10... e6 {[%clk 0:02:30.5]} 11. Nc3
{[%clk 0:02:44.1]} 11... Be7 {[%clk 0:02:26.4]} 12. Be3 {[%clk 0:02:44.3]} 12...
O-O {[%clk 0:02:22.6]} 13. h3 {[%clk 0:02:41.9]} 13... Bxf3 {[%clk 0:02:19.8]}
14. Bxf3 {[%clk 0:02:42.3]} 14... Nxe5 {[%clk 0:02:21.3]} 15. Bxb7 {[%clk
0:02:42]} 15... Qxd1 {[%clk 0:02:19.2]} 16. Rfxd1 {[%clk 0:02:39.2]} 16... Rab8
{[%clk 0:02:20.3]} 17. Be4 {[%clk 0:02:37.3]} 17... Nec4 {[%clk 0:02:12.2]} 18.
b4 {[%clk 0:02:10.7]} 18... Nxe3 {[%clk 0:02:11.4]} 19. fxe3 {[%clk 0:02:12.6]}
19... Bf6 {[%clk 0:02:10.8]} 20. Rac1 {[%clk 0:02:11.8]} 20... Nc4 {[%clk
0:02:10.2]} 21. Nb1 {[%clk 0:01:46.8]} 21... Nxe3 {[%clk 0:02:03.5]} 22. Rd3
{[%clk 0:01:42.6]} 22... Rbc8 {[%clk 0:01:39.1]} 23. Rxc8 {[%clk 0:01:38.1]}
23... Rxc8 {[%clk 0:01:39.3]} 24. Rxe3 {[%clk 0:01:38.9]} 24... Bd4 {[%clk
0:01:40.9]} 25. Kf2 {[%clk 0:01:40.2]} 25... f5 {[%clk 0:01:42.5]} 26. Bd3
{[%clk 0:01:38.4]} 26... f4 {[%clk 0:01:43.2]} 27. Kf3 {[%clk 0:01:31.7]} 27...
fxe3 {[%clk 0:01:40.1]} 0-1